bitfinex-derivatives/quotes_ETHF0:USTF0_20241026
["timestamp","ask_amount","ask_price","bid_price","bid_amount"]
[1729959679681,0.8562,2461.6,2461.0,0.866]
[1729959680180,0.40682,2461.2,2461.1,0.40682]
[1729959682787,0.4068,2461.3,2461.2,0.4068]
[1729959683383,1.01691,2461.5,2461.0,0.866]
[1729959683681,0.40682,2461.2,2461.1,0.40681]
[1729959684687,0.4068,2461.3,2461.2,0.40679]
[1729959684984,0.40674,2461.7,2461.6,0.40673]
[1729959687386,0.40672,2461.8,2461.7,0.40671]
[1729959688585,0.40671,2461.9,2461.8,0.4067]
[1729959689492,0.845,2462.1,2461.4,1.43904]
[1729959689694,0.40672,2461.8,2461.7,0.40672]
[1729959690593,0.4067,2461.9,2461.8,0.4067]
[1729959690794,0.40671,2461.9,2461.8,0.40671]
[1729959691197,0.40671,2461.9,2461.4,0.4221]
[1729959691490,0.40668,2462.0,2461.9,0.40667]
[1729959696794,0.4067,2461.9,2461.8,0.4067]
[1729959696996,0.40667,2462.1,2462.0,0.40666]
[1729959697192,0.40669,2462.0,2461.9,0.40668]
[1729959698396,1.89856,2462.4,2461.6,1.01686]
[1729959698596,0.40667,2462.1,2462.0,0.40667]
[1729959699093,1.89856,2462.4,2461.6,1.01686]
[1729959699094,0.40668,2462.0,2461.9,0.40668]
[1729959699490,1.89856,2462.4,2461.5,1.01691]
[1729959699696,0.4397,2462.4,2461.7,1.01682]
[1729959699995,0.40665,2462.2,2462.1,0.40664]
[1729959700289,0.40667,2462.1,2462.0,0.40667]
[1729959700596,0.40664,2462.3,2462.2,0.40663]
[1729959701796,0.40665,2462.2,2462.1,0.40665]
[1729959702790,0.40664,2462.3,2461.8,1.43427]
[1729959703096,0.40665,2462.2,2462.1,0.40665]
[1729959703893,0.4444,2462.4,2461.8,1.43427]
[1729959704198,0.40664,2462.3,2462.2,0.40664]
[1729959704499,0.40666,2462.2,2462.1,0.40665]
[1729959704998,0.40664,2462.3,2462.2,0.40663]
[1729959705199,0.4336,2462.8,2462.2,0.4262]
[1729959705393,0.40656,2462.7,2462.4,0.40661]
[1729959705593,0.40661,2462.5,2462.4,0.40661]
[1729959705798,0.40659,2462.5,2462.3,0.40663]
[1729959706094,0.8452,2462.8,2462.4,0.4066]
[1729959706299,0.40659,2462.6,2462.5,0.40659]
[1729959706600,0.4066,2462.5,2462.4,0.4066]
[1729959707901,0.40659,2462.6,2462.5,0.40659]
[1729959708198,0.8452,2462.8,2462.4,0.4268]
[1729959708399,0.40659,2462.5,2462.4,0.8334]
[1729959709596,0.40661,2462.4,2462.3,0.4313]
[1729959709805,0.40663,2462.3,2462.2,1.25294]
[1729959711206,0.40663,2462.3,2462.2,0.8463]
[1729959711500,0.40663,2462.3,2462.2,1.25294]
[1729959711904,0.40663,2462.3,2462.2,0.8463]
[1729959712404,0.40663,2462.3,2462.2,1.25294]
[1729959712702,0.40663,2462.3,2462.2,0.8463]
[1729959713102,0.40663,2462.3,2462.2,0.4201]
[1729959713302,0.40663,2462.3,2462.2,0.82674]
[1729959714104,0.40663,2462.4,2462.3,0.40662]
[1729959715204,0.4321,2462.6,2462.2,0.4201]
[1729959715508,0.40663,2462.4,2462.3,0.40662]
[1729959715706,0.40663,2462.4,2462.3,1.25922]
[1729959716407,0.40659,2462.6,2462.5,0.40659]
[1729959717503,0.4312,2463.0,2462.5,4.0608]
[1729959717707,0.40656,2462.8,2462.7,0.40656]
[1729959718008,0.40656,2462.8,2462.7,0.8476]
[1729959718598,0.40656,2462.8,2462.7,1.25416]
[1729959719004,0.40656,2462.8,2462.7,0.8476]
[1729959719611,1.42286,2462.9,2462.6,0.40657]
[1729959719804,0.40658,2462.7,2462.6,0.40657]
[1729959720004,0.40658,2462.6,2462.5,0.40658]
[1729959721211,0.40657,2462.7,2462.6,0.40656]
[1729959722115,0.4066,2462.5,2462.4,0.40661]
[1729959722511,0.40658,2462.6,2462.5,0.40658]
[1729959722712,0.40656,2462.8,2462.7,0.40655]
[1729959722912,0.40657,2462.7,2462.6,0.40657]
[1729959724713,1.3198,2463.0,2462.3,1.2844]
[1729959724919,0.40663,2462.3,2462.2,0.20757535]
[1729959725111,1.01645,2462.7,2462.1,0.40664]
[1729959725312,1.01649,2462.5,2461.9,1.3074]
[1729959725615,0.40666,2462.2,2462.1,0.40665]
[1729959725819,0.40666,2462.2,2462.1,0.61339106]
[1729959726116,1.3219,2462.6,2461.9,1.3074]
[1729959726310,2.33835,2462.6,2461.9,1.3074]
[1729959726513,0.40664,2462.3,2462.2,0.40664]
[1729959726821,2.33835,2462.6,2461.9,1.3074]
[1729959727018,0.40665,2462.2,2462.1,0.40665]
[1729959727217,0.40663,2462.3,2462.2,0.40663]
[1729959728123,0.40663,2462.3,2461.9,1.3074]
[1729959728124,0.40667,2462.1,2462.0,0.40667]
[1729959729617,1.0165,2462.5,2461.9,1.3074]
[1729959729825,0.40667,2462.1,2462.0,0.40667]
[1729959730321,0.40668,2462.0,2461.9,0.81789]
[1729959730516,0.40668,2462.0,2461.9,0.4112]
[1729959730817,0.40667,2462.1,2461.9,0.4112]
[1729959731023,0.40668,2462.0,2461.9,0.81789]
[1729959731420,0.8578,2462.2,2461.7,1.24431]
[1729959731625,0.40671,2461.8,2461.7,1.24431]
[1729959731925,1.46487,2462.1,2461.7,0.8376]
[1729959731926,0.4482,2462.1,2461.7,0.8376]
[1729959732226,0.40671,2461.8,2461.7,1.24432]
[1729959733224,0.4482,2462.1,2461.5,0.4184]
[1729959733525,0.40671,2461.8,2461.7,0.40671]
[1729959734527,0.40673,2461.7,2461.6,0.40673]
[1729959735122,1.01671,2462.0,2461.5,0.82515]
[1729959735325,0.40674,2461.7,2461.6,0.40674]
[1729959735919,0.40674,2461.6,2461.5,0.82515]
[1729959736320,0.40674,2461.6,2461.5,0.82516]
[1729959736625,0.84882,2461.8,2461.7,0.40673]
[1729959737020,0.4421,2461.8,2461.5,0.4184]
[1729959737523,0.40673,2461.7,2461.6,0.40673]
[1729959738429,0.4421,2461.8,2461.5,0.4184]
[1729959738826,0.40673,2461.7,2461.6,0.40673]
[1729959739129,0.40673,2461.7,2461.5,0.4184]
[1729959739329,0.40673,2461.7,2461.6,0.40674]
[1729959740123,0.40671,2461.9,2461.8,0.4067]
[1729959740323,1.0167,2462.0,2461.5,0.4184]
[1729959740529,0.40674,2461.6,2461.5,0.4184]
[1729959740732,0.40678,2461.4,2461.3,0.8532]
[1729959741126,0.8369,2461.7,2461.0,0.4348]
[1729959741434,0.40681,2461.2,2461.1,0.40683]
[1729959741628,0.4068,2461.3,2461.2,0.4068]
[1729959741829,0.40679,2461.4,2461.3,0.40679]
[1729959742829,0.8369,2461.7,2461.1,0.8577]
[1729959743027,0.40681,2461.2,2461.1,1.26452]
[1729959743226,0.40681,2461.2,2461.1,0.8577]
[1729959744836,0.40686,2460.9,2460.8,0.40687]
[1729959745227,0.4383,2461.1,2460.7,0.8695]
[1729959745430,0.40687,2460.8,2460.7,0.4513]
[1729959746023,0.40691,2460.6,2460.5,0.40691]
[1729959746527,0.8548,2460.9,2460.4,0.4486]
[1729959746731,0.40689,2460.7,2460.6,0.4069]
[1729959746933,0.40683,2461.1,2461.0,0.40684]
[1729959747130,0.40685,2461.0,2460.9,0.40685]
[1729959747431,0.40683,2461.1,2461.0,0.40684]
[1729959747727,0.40681,2461.2,2461.1,0.40682]
[1729959749940,1.27,2461.4,2460.8,1.2996]
[1729959750235,0.8449,2461.6,2460.8,1.2996]
[1729959750435,0.40681,2461.2,2461.1,0.40681]
[1729959751937,0.40681,2461.2,2460.8,1.2996]
[1729959751938,0.4068,2461.3,2461.2,0.4068]
[1729959752138,0.40682,2461.2,2461.1,0.40682]
[1729959752346,0.4068,2461.3,2461.2,0.4068]
[1729959755836,0.40679,2461.4,2461.3,0.40678]
[1729959756135,0.40679,2461.4,2461.3,0.40679]
[1729959756339,0.4068,2461.3,2461.2,0.4068]
[1729959757641,0.40679,2461.4,2461.3,0.40679]
[1729959759142,0.8449,2461.6,2460.9,1.01714]
[1729959759440,0.40678,2461.5,2461.4,0.40676]
[1729959759641,0.8449,2461.6,2461.2,0.8558]
[1729959759841,0.40678,2461.4,2461.3,0.40678]
[1729959760042,0.40677,2461.5,2461.4,0.40676]
[1729959765646,0.8449,2461.6,2461.2,0.8558]
[1729959765849,0.40679,2461.4,2461.3,0.40678]
[1729959768251,0.40679,2461.4,2461.3,0.81428]
[1729959770553,0.40677,2461.5,2461.4,0.40675]
[1729959770953,0.40678,2461.4,2461.3,0.81428]
[1729959771353,0.8802,2461.6,2461.3,0.4075]
[1729959771554,0.40677,2461.5,2461.4,0.40676]
[1729959780251,0.8625,2461.9,2461.3,0.4075]
[1729959780559,0.40673,2461.8,2461.7,0.40672]
[1729959780956,0.40669,2462.0,2461.9,0.40669]
[1729959781158,0.869,2462.2,2462.1,0.40665]
[1729959781159,0.40665,2462.2,2462.1,0.40665]
[1729959781359,0.40663,2462.3,2462.2,0.40663]
[1729959781662,0.40662,2462.4,2462.3,0.40662]
[1729959782261,0.40664,2462.3,2462.2,0.40664]
[1729959782856,0.40662,2462.4,2462.3,0.40662]
[1729959783757,0.4516,2462.6,2461.9,0.8911]
[1729959783960,0.4066,2462.5,2462.4,0.4066]
[1729959784467,0.4121,2462.7,2462.0,1.0167]
[1729959784663,0.40661,2462.5,2462.4,0.40661]
[1729959784864,0.4121,2462.7,2462.0,1.0167]
[1729959785061,0.40662,2462.4,2462.3,0.40662]
[1729959785261,0.4066,2462.5,2462.4,0.4066]
[1729959785465,0.4516,2462.9,2462.1,1.01664]
[1729959785768,0.40656,2462.7,2462.6,0.40656]
[1729959786266,0.4516,2462.9,2462.1,1.01664]
[1729959786464,0.40658,2462.7,2462.2,1.42326]
[1729959786665,0.4516,2462.9,2462.5,0.40658]
[1729959786865,0.40658,2462.6,2462.5,0.40658]
[1729959787468,0.40657,2462.7,2462.6,0.40657]
[1729959788871,0.4516,2462.9,2462.1,1.01664]
[1729959789072,0.40658,2462.6,2462.5,0.40658]
[1729959789271,0.4516,2462.9,2461.9,0.445]
[1729959789474,1.2988,2463.1,2461.9,0.445]
[1729959789475,0.40665,2462.2,2462.1,0.40665]
[1729959789967,1.01653,2462.4,2461.9,0.445]
[1729959790171,0.40668,2462.0,2461.9,0.445]
[1729959790576,0.40668,2462.0,2461.9,0.85169]
[1729959791272,1.01659,2462.3,2461.2,13.94119942]
[1729959791480,0.40672,2461.8,2461.7,0.40672]
[1729959792676,0.438,2462.1,2461.3,0.4296]
[1729959792869,0.4509,2462.0,2461.3,0.4296]
[1729959793074,0.40675,2461.6,2461.5,0.40675]
[1729959793479,1.88962,2462.0,2461.3,0.4296]
[1729959793773,0.40673,2461.7,2461.6,0.40674]
[1729959795676,0.4067,2461.9,2461.8,0.40669]
[1729959796476,0.4509,2462.0,2461.4,1.01695]
[1729959796775,0.4067,2461.9,2461.8,0.40669]
[1729959803683,0.40672,2461.8,2461.7,0.40671]
[1729959804375,0.40673,2461.7,2461.6,0.85853]
[1729959806175,0.40678,2461.5,2461.4,0.40677]
[1729959806380,1.01679,2461.8,2461.5,0.40675]
[1729959806381,0.40675,2461.6,2461.5,0.40675]
[1729959806779,0.40677,2461.5,2461.4,0.40676]
[1729959806977,0.4233,2461.8,2461.6,0.40674]
[1729959806978,0.82274,2461.7,2461.6,0.40674]
[1729959807477,0.40674,2461.7,2461.6,0.40674]
[1729959808079,0.416,2462.0,2461.3,0.4296]
[1729959808280,0.416,2462.0,2461.7,0.40672]
[1729959808281,0.40673,2461.8,2461.7,0.40672]
[1729959808883,0.416,2462.0,2461.4,1.01695]
[1729959809078,0.416,2462.0,2461.5,0.4193]
[1729959809280,0.40669,2462.0,2461.9,0.40668]
[1729959809885,1.2867,2462.2,2461.6,1.43286]
[1729959810084,0.4067,2461.9,2461.8,0.40669]
[1729959813885,0.40673,2461.7,2461.6,0.416]
[1729959814085,0.40673,2461.7,2461.6,0.82274]
[1729959815384,0.40673,2461.7,2461.6,0.416]
[1729959815584,1.01675,2461.9,2461.5,0.82605]
[1729959815585,0.40674,2461.6,2461.5,0.4193]
[1729959816685,0.40676,2461.5,2461.4,0.4515]
[1729959816892,0.40676,2461.5,2461.4,0.40678]
[1729959817191,0.40678,2461.4,2461.3,0.4296]
[1729959817382,0.40678,2461.4,2461.3,0.83639]
[1729959817690,0.40678,2461.4,2461.3,0.83638]
[1729959821496,0.40678,2461.4,2461.3,0.4296]
[1729959821793,0.40681,2461.3,2461.2,0.4068]
[1729959823795,1.42658,2461.6,2461.1,0.8841]
[1729959823998,0.40677,2461.3,2461.1,1.29088]
[1729959824688,1.42658,2461.6,2461.1,0.8841]
[1729959824884,0.4097,2461.6,2461.2,0.40675]
[1729959825089,0.40674,2461.4,2461.3,0.4175]
[1729959830500,0.40674,2461.4,2461.3,0.82425]
[1729959831197,0.40674,2461.4,2461.3,0.4175]
[1729959831402,0.40674,2461.4,2461.3,0.82425]
[1729959832001,0.40674,2461.4,2461.3,0.4175]
[1729959832197,0.40677,2461.2,2461.1,0.8841]
[1729959833404,0.40677,2461.2,2461.1,5.35408]
[1729959834604,0.40677,2461.2,2461.1,4.9473]
[1729959834905,0.40677,2461.2,2461.1,0.8841]
[1729959835204,0.40677,2461.2,2461.1,0.4326]
[1729959837007,2.29885,2461.4,2461.0,0.4278]
[1729959837302,0.40678,2461.1,2461.0,0.4442]
[1729959843916,1.282,2461.4,2460.3,13.7966013]
[1729959844105,0.4375,2461.0,2460.6,1.2737]
[1729959844311,0.40685,2460.8,2460.7,0.40684]
[1729959845718,0.40685,2460.8,2460.7,4.47084]
[1729959847119,0.40683,2460.9,2460.8,0.40683]
[1729959847320,0.40684,2460.8,2460.7,0.40684]
[1729959847819,0.40684,2460.8,2460.7,4.47084]
[1729959848122,0.4428,2461.3,2460.7,4.064]
[1729959848316,0.40676,2461.3,2461.2,0.40676]
[1729959848619,0.40674,2461.4,2461.3,0.40674]
[1729959849219,1.44513,2461.7,2461.1,0.4262]
[1729959849621,0.40672,2461.6,2461.1,1.44316]
[1729959849920,0.4067,2461.6,2461.5,0.40671]
[1729959850422,2.32641,2462.0,2461.1,1.44316]
[1729959850423,0.40675,2461.3,2461.2,0.40677]
[1729959850717,0.40677,2461.2,2461.1,0.4262]
[1729959851414,0.40677,2461.2,2461.1,0.83298]
[1729959851717,0.40677,2461.2,2461.1,0.4262]
[1729959852119,0.40677,2461.2,2461.1,0.83298]
[1729959853323,0.40675,2461.4,2461.3,0.40675]
[1729959853918,0.40673,2461.5,2461.4,0.40673]
[1729959854522,1.0167,2461.8,2461.1,0.4262]
[1729959854918,0.40674,2461.4,2461.3,0.40674]
[1729959855825,1.7537,2461.9,2461.1,0.4262]
[1729959856122,0.40672,2461.6,2461.5,0.40671]
[1729959857529,0.40673,2461.5,2461.4,0.40673]
[1729959858426,0.40672,2461.6,2461.5,0.40671]
[1729959860531,1.7537,2461.9,2461.1,1.44316]
[1729959860732,0.40673,2461.5,2461.4,0.40673]
[1729959860928,1.01668,2461.8,2461.1,1.44316]
[1729959861231,1.45566,2462.1,2461.3,1.01688]
[1729959861434,0.40668,2461.8,2461.7,0.40668]
[1729959862030,2.3367,2462.3,2461.5,1.0168]
[1729959862229,0.40667,2461.9,2461.8,0.40666]
[1729959863635,0.40668,2461.8,2461.7,0.40667]
[1729959863835,0.40666,2461.9,2461.8,0.40666]
[1729959864534,0.8794,2462.2,2461.5,0.4165]
[1729959864736,0.40668,2461.8,2461.7,0.40668]
[1729959865335,1.01656,2462.1,2461.5,0.4165]
[1729959865633,0.40666,2461.9,2461.8,0.40666]
[1729959866938,0.40668,2461.8,2461.7,0.40667]
[1729959867635,1.89592,2462.2,2461.5,1.43329]
[1729959867837,0.40666,2461.9,2461.8,0.40666]
[1729959869238,0.40668,2461.8,2461.7,0.40668]
[1729959871635,0.40666,2461.9,2461.8,0.40665]
[1729959872139,0.40665,2461.9,2461.8,0.40665]
[1729959875339,0.4522,2462.3,2462.2,0.4066]
[1729959875340,0.4066,2462.3,2462.2,0.4066]
[1729959875539,0.8548,2462.6,2461.9,1.3157]
[1729959875840,0.40658,2462.4,2462.3,0.40658]
[1729959876235,0.40658,2462.4,2462.0,1.0166]
[1729959876431,0.40658,2462.4,2462.3,0.40659]
[1729959876741,0.8548,2462.6,2461.9,2.33233]
[1729959876945,1.01606,2463.4,2462.2,1.01649]
[1729959877136,0.40647,2463.1,2462.9,0.40648]
[1729959877338,0.8714,2463.3,2462.9,0.40648]
[1729959877536,0.40647,2463.0,2462.9,0.40648]
[1729959878139,0.40647,2463.0,2462.8,0.40649]
[1729959878339,0.40647,2463.0,2462.9,0.4408]
[1729959878534,0.40647,2463.0,2462.9,0.84729]
[1729959878745,0.8714,2463.3,2462.9,4.5008]
[1729959878935,0.8714,2463.3,2463.0,0.40646]
[1729959879133,0.40645,2463.2,2463.0,0.40646]
[1729959879330,1.01589,2463.8,2462.9,0.4408]
[1729959879539,0.862,2463.7,2463.2,0.40643]
[1729959879740,0.40642,2463.4,2463.2,0.40643]
[1729959879931,0.862,2463.7,2462.9,0.4408]
[1729959880136,0.40644,2463.2,2463.1,0.40645]
[1729959880535,0.40643,2463.3,2463.0,0.40646]
[1729959880735,1.87791,2463.7,2463.1,0.4122]
[1729959880936,0.40644,2463.2,2463.1,0.4122]
[1729959881342,0.40644,2463.3,2463.1,0.4122]
[1729959881644,1.87791,2463.7,2463.1,0.4122]
[1729959881842,0.4262,2463.7,2463.1,0.4122]
[1729959882042,0.40638,2463.6,2463.4,0.4064]
[1729959882244,0.40638,2463.6,2463.5,0.8585]
[1729959890047,0.40637,2463.7,2463.5,1.26488]
[1729959890244,0.40637,2463.6,2463.5,0.8585]
[1729959893248,0.40648,2463.0,2462.8,0.4065]
[1729959893546,0.8844,2463.5,2462.9,1.2884]
[1729959893747,1.90039,2463.5,2462.9,1.2884]
[1729959893948,0.40647,2463.1,2462.9,1.2884]
[1729959894655,0.8844,2463.5,2462.9,1.2884]
[1729959894956,0.40647,2463.0,2462.9,1.2884]
[1729959895849,0.40647,2463.0,2462.9,0.8389]
[1729959897959,0.4065,2462.8,2462.5,0.867]
[1729959898254,0.4065,2462.8,2462.7,0.427]
[1729959901862,0.4199,2463.1,2462.7,0.427]
[1729959902063,0.40643,2463.3,2462.8,0.4065]
[1729959902259,0.40643,2463.3,2463.0,0.40646]
[1729959902455,0.40643,2463.3,2463.1,0.8548]
[1729959902662,2.03119,2464.5,2463.1,0.8548]
[1729959902957,1.2948,2464.0,2463.1,0.8548]
[1729959903158,0.40638,2463.6,2463.3,0.40641]
[1729959903359,0.40638,2463.6,2463.4,0.4368]
[1729959903559,0.40638,2463.6,2463.5,0.4367]
[1729959906657,0.40636,2463.7,2463.5,0.84308]
[1729959906863,0.40636,2463.7,2463.6,0.4257]
[1729959907168,0.40634,2463.8,2463.6,0.83206]
[1729959907665,0.8521,2464.0,2463.6,0.4257]
[1729959907866,0.40635,2463.8,2463.6,0.83206]
[1729959908263,0.8521,2464.0,2463.6,0.83206]
[1729959908467,0.40634,2463.9,2463.6,0.83206]
[1729959908668,0.8424,2464.2,2463.6,0.83206]
[1729959908973,0.40634,2463.9,2463.7,0.40635]
[1729959909167,0.40631,2464.0,2463.8,0.40633]
[1729959909669,0.40631,2464.0,2463.9,0.45]
[1729959909871,0.4152,2464.2,2463.6,0.4257]
[1729959910075,0.40634,2463.8,2463.6,0.83206]
[1729959910774,0.40633,2463.9,2463.7,0.40636]
[1729959911274,0.40632,2464.0,2463.8,0.40634]
[1729959911774,0.40632,2464.0,2463.9,0.4337]
[1729959915566,2.40665478,2464.4,2463.9,0.4337]
[1729959915567,1.01561,2464.4,2463.9,0.4337]
[1729959915772,0.40628,2464.2,2464.0,0.8355]
[1729959915974,0.40628,2464.2,2464.1,0.84419]
[1729959916375,0.40622,2464.5,2464.1,4.4963]
[1729959916675,0.40622,2464.5,2464.3,0.40624]
[1729959916869,0.40622,2464.5,2464.4,0.419]
[1729959917070,0.40622,2464.5,2464.4,4.88284]
[1729959917376,1.42572,2465.4,2464.4,5.3436]
[1729959917581,1.01532,2465.1,2464.5,0.40621]
[1729959917784,0.4062,2464.7,2464.5,0.40622]
[1729959918079,0.40618,2464.8,2464.6,0.4062]
[1729959918286,0.40619,2464.8,2464.5,0.40622]
[1729959918587,0.4237,2465.3,2464.4,0.419]
[1729959919179,0.40615,2465.0,2464.7,0.40618]
[1729959919375,0.4237,2465.3,2464.8,0.4258]
[1729959919576,0.4237,2465.3,2464.8,0.8368]
[1729959919883,0.4237,2465.3,2464.8,1.24296]
[1729959920076,0.4237,2465.3,2464.8,0.8368]
[1729959920278,0.40613,2465.1,2464.9,0.40614]
[1729959920480,0.40613,2465.1,2464.8,1.24296]
[1729959921281,0.4237,2465.3,2464.8,1.24296]
[1729959921578,0.40614,2465.0,2464.8,1.24297]
[1729959922482,0.40615,2465.0,2464.8,4.8936]
[1729959922774,0.40616,2464.9,2464.8,0.8368]
[1729959931685,0.40616,2464.9,2464.8,0.4258]
[1729959939595,0.4237,2465.3,2464.8,0.4258]
[1729959939796,0.40616,2464.9,2464.8,0.4258]
[1729959940499,0.40616,2464.9,2464.8,0.83197]
[1729959940696,0.40616,2464.9,2464.8,0.4258]
[1729959941597,0.40615,2465.0,2464.8,0.83197]
[1729959941800,0.40616,2464.9,2464.8,0.83197]
[1729959942099,0.40616,2464.9,2464.8,0.4258]
[1729959945296,0.4457,2465.0,2464.8,0.4258]
[1729959945502,0.40615,2465.0,2464.8,0.83197]
[1729959946702,0.40616,2464.9,2464.8,0.4258]
[1729959946899,0.40615,2465.0,2464.8,0.83197]
[1729959947100,0.40616,2464.9,2464.8,0.4258]
[1729959947503,0.40615,2465.0,2464.8,4.88877]
[1729959947702,0.40615,2465.0,2464.8,0.83197]
[1729959948103,0.40616,2464.9,2464.8,0.83197]
[1729959948493,0.40615,2465.0,2464.8,0.83197]
[1729959948803,0.412,2465.2,2464.8,0.83197]
[1729959949003,0.40616,2464.9,2464.8,0.83197]
[1729959949201,0.40616,2464.9,2464.8,0.4258]
[1729959950303,0.40615,2465.0,2464.8,0.83197]
[1729959950505,0.412,2465.2,2464.8,0.83197]
[1729959950706,0.40615,2465.0,2464.8,0.83197]
[1729959951502,0.412,2465.2,2464.8,0.83197]
[1729959951701,0.40616,2464.9,2464.8,0.83197]
[1729959952408,0.40615,2465.0,2464.8,0.83197]
[1729959952613,0.40616,2464.9,2464.8,0.83197]
[1729959952903,0.40616,2464.9,2464.8,0.4258]
[1729959953210,1.01536,2465.0,2464.5,1.2907]
[1729959953411,0.4125,2465.0,2464.6,0.4269]
[1729959953605,0.40618,2464.8,2464.6,0.8331]
[1729959953802,0.40618,2464.8,2464.6,0.4269]
[1729959954003,0.40618,2464.8,2464.6,0.83309]
[1729959954305,1.01533,2465.1,2464.6,0.4269]
[1729959954703,0.40619,2464.8,2464.6,0.83311]
[1729959955706,1.01533,2465.1,2464.6,0.4269]
[1729959956119,0.40618,2464.8,2464.6,0.8331]
[1729959957514,0.40619,2464.7,2464.6,0.4269]
[1729959957814,1.01533,2465.1,2464.6,0.4269]
[1729959958018,0.40618,2464.8,2464.7,0.40619]
[1729959958213,0.412,2465.2,2464.7,0.40619]
[1729959958412,0.40616,2464.9,2464.7,0.40619]
[1729959958613,0.40618,2464.8,2464.6,0.83309]
[1729959959117,0.40617,2464.9,2464.7,0.40619]
[1729959959513,1.42728,2465.2,2464.7,0.40619]
[1729959959712,0.40617,2464.8,2464.7,0.40619]
[1729959960721,0.40617,2464.9,2464.7,0.40619]
[1729959961020,1.42728,2465.2,2464.6,0.4269]
[1729959961319,0.40619,2464.8,2464.6,0.8331]
[1729959961914,0.4292,2465.0,2464.6,0.4269]
[1729959962109,0.40619,2464.7,2464.6,0.4269]
[1729959962315,0.40618,2464.8,2464.6,0.8331]
[1729959962617,0.40618,2464.8,2464.7,0.40619]
[1729959962819,0.83757,2464.9,2464.7,0.40619]
[1729959963117,0.40619,2464.8,2464.6,0.8331]
[1729959963318,0.40617,2464.8,2464.6,0.8331]
[1729959963822,0.83757,2464.9,2464.7,0.40619]
[1729959964219,0.40617,2464.9,2464.7,0.40619]
[1729959964621,0.33757,2465.1,2464.7,0.40619]
[1729959964819,0.40617,2464.9,2464.7,0.40619]
[1729959966926,0.33757,2465.1,2464.6,1.2929]
[1729959967125,0.40617,2464.9,2464.7,0.40619]
[1729959967424,0.40619,2464.8,2464.6,1.6991]
[1729959967827,1.3529,2465.1,2464.6,1.2929]
[1729959968026,0.40617,2464.9,2464.7,0.40619]
[1729959969329,0.40611,2465.2,2465.0,0.40613]
[1729959969523,0.40606,2465.5,2465.1,1.7286]
[1729959969828,0.40605,2465.6,2465.4,0.40607]
[1729959970029,0.40605,2465.6,2465.5,0.4447]
[1729959970223,0.40605,2465.6,2465.5,0.8626]
[1729959970628,0.40604,2465.6,2465.5,1.26865]
[1729959970828,0.40603,2465.7,2465.5,1.26865]
[1729959971125,0.40603,2465.7,2465.5,0.8626]
[1729959971326,1.01459,2466.9,2465.6,4.922]
[1729959971528,1.01463,2466.8,2465.9,0.40598]
[1729959971723,0.40597,2466.1,2466.0,0.4294]
[1729959972423,0.84504,2466.3,2466.0,0.83537]
[1729959972619,0.40596,2466.1,2466.0,0.4294]
[1729959974130,0.4391,2466.3,2465.8,0.866]
[1729959974325,0.40599,2466.0,2465.8,0.866]
[1729959974629,0.40596,2466.2,2465.9,0.40599]
[1729959975020,0.40594,2466.2,2465.9,0.40599]
[1729959975230,0.40597,2466.1,2465.9,0.40599]
[1729959975625,0.4391,2466.3,2465.9,0.40599]
[1729959975826,0.40596,2466.1,2465.9,0.40598]
[1729959976528,0.4391,2466.3,2465.9,0.40598]
[1729959976730,0.40595,2466.2,2465.8,0.866]
[1729959976923,0.84503,2466.3,2466.1,0.40596]
[1729959977122,0.84503,2466.3,2466.0,0.40596]
[1729959977330,0.84503,2466.3,2465.8,0.866]
[1729959977527,0.40594,2466.2,2465.8,0.866]
[1729959977829,0.4391,2466.3,2465.9,1.27099]
[1729959978025,1.01472,2466.6,2466.3,0.40591]
[1729959978026,0.40589,2466.6,2466.3,0.40591]
[1729959978228,0.40593,2466.3,2466.0,0.40596]
[1729959978431,1.86553,2466.8,2466.1,0.432]
[1729959978731,0.40593,2466.3,2466.2,0.4438]
[1729959979030,1.01468,2466.7,2466.2,0.4438]
[1729959979220,0.4192,2466.6,2466.2,0.4438]
[1729959979424,0.40593,2466.3,2466.2,0.4438]
[1729959979631,0.4192,2466.6,2466.2,0.4438]
[1729959979931,1.01474,2466.5,2466.1,0.865]
[1729959980131,0.40594,2466.2,2466.1,0.865]
[1729959980329,0.4192,2466.6,2466.1,0.865]
[1729959980625,0.4192,2466.6,2466.2,0.40594]
[1729959980827,0.4192,2466.6,2466.1,1.27095]
[1729959981033,0.40593,2466.3,2466.1,1.27095]
[1729959981235,0.40592,2466.4,2466.1,1.27095]
[1729959981532,0.40592,2466.4,2466.2,0.40594]
[1729959981730,0.40593,2466.3,2466.1,1.27095]
[1729959982034,0.40593,2466.4,2466.1,1.27095]
[1729959982236,0.40593,2466.4,2466.2,0.40594]
[1729959982432,0.40593,2466.4,2466.3,0.8759]
[1729959984133,0.4192,2466.6,2466.3,0.8759]
[1729959984334,0.4059,2466.5,2466.3,0.8759]
[1729959984534,0.40591,2466.4,2466.3,0.8759]
[1729959985731,0.4192,2466.6,2466.3,0.8759]
[1729959985931,0.40591,2466.4,2466.3,0.8759]
[1729959986827,0.40594,2466.3,2466.1,1.27096]
[1729959987029,0.40594,2466.3,2466.1,0.40596]
[1729959987528,1.43391,2466.6,2466.1,0.40596]
[1729959987529,0.40592,2466.4,2466.2,0.40594]
[1729959987833,0.40592,2466.4,2466.2,1.25944]